fUSD/lending_fUSD_20250826
["ID","MTS","AMOUNT","RATE_DAILY","PERIOD"]
[381439963,1756198244396,-500.0,0.00031782,2]
[381439965,1756198244406,-1188.04,0.00031786,15]
[381439966,1756198244417,-405.0,0.00031835,2]
[381439967,1756198244427,-204.0,0.0003186,30]
[381439968,1756198244436,-225.0,0.0003186,30]
[381439969,1756198244445,-23191.73093013,0.00031867,17]
[381439970,1756198244455,-2300.0,0.00031869,7]
[381439971,1756198244464,-900.0,0.00031869,7]
[381439972,1756198244473,-1000.0,0.00031869,7]
[381439973,1756198244482,-1188.04,0.00031886,15]
[381439974,1756198244491,-435.27074847,0.00031888,2]
[381439975,1756198244501,-262229.42961734,0.000319,30]
[381439976,1756198244510,-2496.36,0.00031924,15]
[381439977,1756198244520,-2496.36,0.00031924,15]
[381439978,1756198244529,-2496.36,0.00031924,15]
[381439979,1756198244539,-2496.36,0.00031924,15]
[381439980,1756198244550,-1188.04,0.00031986,15]
[381439981,1756198244560,-844.63891918,0.00032,30]
[381439982,1756198244570,-2000.0,0.00032,2]
[381439983,1756198244580,-672.0,0.00032,30]
[381439984,1756198244589,-8595.56,0.00032,7]
[381439985,1756198244599,-335.0,0.00032,30]
[381439986,1756198244608,-162.019999,0.00032,3]
[381439987,1756198244618,-181.68309883,0.00032056,2]
[381439988,1756198244627,-150.0,0.00032056,2]
[381439989,1756198244637,-500.0,0.00032056,2]
[381439997,1756198244813,-500.0,0.00032056,2]
[381439999,1756198244823,-500.0,0.00032056,2]
[381440001,1756198244832,-500.0,0.00032056,2]
[381440003,1756198244841,-150.0,0.00032056,2]
[381440005,1756198244850,-212.18043798,0.00032082,30]
[381440006,1756198244859,-1188.04,0.00032086,15]
[381440008,1756198244869,-1188.04,0.00032186,15]
[381440010,1756198244880,-2496.36,0.00032198,15]
[381440012,1756198244890,-2496.36,0.00032198,15]
[381440014,1756198244899,-14058.32,0.000322,2]
[381440016,1756198244908,-150.0,0.00032234,120]
[381440018,1756198244919,-2204.57,0.0003226,30]
[381440020,1756198244928,-1188.04,0.00032286,15]
[381440022,1756198244937,-379.88773956,0.000323,2]
[381440024,1756198244946,-2752.62820139,0.00032311,2]
[381440026,1756198244957,-1062.2,0.00032328,19]
[381440028,1756198244966,-153.14383106,0.0003233,2]
[381440029,1756198244975,-500.0,0.0003233,2]
[381440030,1756198244986,-500.0,0.0003233,2]
[381440031,1756198244998,-500.0,0.0003233,2]
[381440032,1756198245009,-500.0,0.0003233,2]
[381440033,1756198245019,-150.0,0.0003233,2]
[381440034,1756198245028,-731.50777169,0.00032336,2]
[381440035,1756198245039,-3754.71266911,0.00032356,2]
[381440036,1756198245049,-1188.04,0.00032386,15]
[381440037,1756198245059,-1077.51973177,0.00032401,2]
[381440038,1756198245068,-2496.36,0.00032472,15]
[381440039,1756198245078,-2496.36,0.00032472,15]
[381440040,1756198245088,-1188.04,0.00032486,15]
[381440041,1756198245098,-902.74202846,0.00032494,2]
[381440042,1756198245108,-300.0,0.000325,6]
[381440043,1756198245118,-1057.85,0.000325,120]
[381440044,1756198245127,-8595.56,0.000325,7]
[381440045,1756198245138,-23191.73093013,0.00032564,18]
[381440046,1756198245147,-1188.04,0.00032586,15]
[381440047,1756198245157,-409.47,0.000326,30]
[381440048,1756198245166,-500.0,0.00032604,2]
[381440049,1756198245176,-500.0,0.00032604,2]
[381440050,1756198245185,-500.0,0.00032604,2]
[381440051,1756198245194,-500.0,0.00032604,2]
[381440052,1756198245204,-218.61294035,0.00032604,2]
[381440053,1756198245213,-1188.04,0.00032686,15]
[381440054,1756198245223,-204.0,0.0003269,30]
[381440055,1756198245232,-238.0,0.0003269,30]
[381440056,1756198245241,-225.0,0.0003269,30]
[381440057,1756198245251,-238.0,0.0003269,30]
[381440058,1756198245260,-2300.0,0.00032691,7]
[381440059,1756198245269,-900.0,0.00032691,7]
[381440060,1756198245279,-1000.0,0.00032691,7]
[381440061,1756198245289,-2369.94,0.00032704,2]
[381440062,1756198245298,-539.77,0.00032704,2]
[381440063,1756198245307,-1185.82,0.00032704,2]
[381440064,1756198245316,-408.65,0.00032704,2]
[381440065,1756198245325,-173.79,0.00032704,2]
[381440066,1756198245334,-173.79,0.00032704,2]
[381440067,1756198245344,-150.0,0.00032704,2]
[381440068,1756198245353,-1185.82,0.00032704,2]
[381440069,1756198245362,-539.77,0.00032704,2]
[381440070,1756198245371,-408.65,0.00032704,2]
[381440072,1756198245380,-1185.82,0.00032704,2]
[381440073,1756198245389,-173.79,0.00032704,2]
[381440074,1756198245398,-300.0,0.00032704,2]
[381440075,1756198245407,-408.65,0.00032704,2]
[381440076,1756198245416,-150.0,0.00032704,2]
[381440077,1756198245426,-1185.82,0.00032704,2]
[381440078,1756198245435,-408.65,0.00032704,2]
[381440079,1756198245445,-173.79,0.00032704,2]
[381440080,1756198245455,-539.77,0.00032704,2]
[381440081,1756198245464,-173.79,0.00032704,2]
[381440082,1756198245473,-408.65,0.00032704,2]
[381440083,1756198245482,-539.77,0.00032704,2]
[381440084,1756198245492,-150.0,0.00032704,2]
[381440085,1756198245502,-173.79,0.00032704,2]
[381440086,1756198245511,-539.77,0.00032704,2]
[381440087,1756198245521,-408.65,0.00032704,2]
[381440088,1756198245530,-300.0,0.00032704,2]
[381440089,1756198245539,-5849.72542386,0.00032725,5]
[381440090,1756198245548,-2496.36,0.00032746,15]
[381440091,1756198245558,-2496.36,0.00032746,15]
[381440092,1756198245567,-700.0,0.0003277,2]
[381440093,1756198245577,-283.238,0.0003277,2]
[381440094,1756198245586,-150.0,0.00032775,2]
[381440095,1756198245596,-150.0,0.00032775,2]
[381440096,1756198245606,-165.35,0.00032775,2]
[381440097,1756198245616,-150.0,0.00032775,2]
[381440098,1756198245626,-150.0,0.00032775,2]
[381440099,1756198245635,-150.0,0.00032775,2]
[381440100,1756198245644,-150.0,0.00032775,2]
[381440101,1756198245654,-1185.82,0.00032775,2]
[381440102,1756198245663,-150.0,0.00032775,2]
[381440103,1756198245672,-150.0,0.00032775,2]
[381440104,1756198245682,-1188.04,0.00032786,15]
[381440105,1756198245692,-337.23,0.00032788,2]
[381440106,1756198245702,-332.08,0.00032788,2]
[381440107,1756198245711,-166.12,0.00032788,2]
[381440108,1756198245721,-500.0,0.00032878,2]
[381440109,1756198245731,-350.0,0.00032878,2]
[381440110,1756198245741,-500.0,0.00032878,2]
[381440111,1756198245750,-500.0,0.00032878,2]
[381440112,1756198245759,-653.0,0.00032878,2]
[381440113,1756198245769,-150.0,0.00032878,2]
[381440114,1756198245778,-500.0,0.00032878,2]
[381440115,1756198245788,-500.0,0.00032878,2]
[381440116,1756198245797,-500.0,0.00032878,2]
[381440117,1756198245806,-500.0,0.00032878,2]
[381440118,1756198245816,-185.14518406,0.00032878,2]
[381440119,1756198245825,-500.0,0.00032878,2]
[381440120,1756198245834,-1188.04,0.00032886,60]
[381440121,1756198245843,-14058.32,0.000329,2]
[381440122,1756198245852,-150.0,0.00032928,120]
[381440123,1756198245862,-151.0,0.00032958,30]
[381440124,1756198245871,-552.44285119,0.0003297,2]
[381440125,1756198245885,-731.50777169,0.00032981,2]
[381440126,1756198245894,-1188.04,0.00032986,60]
[381440127,1756198245903,-160.0,0.00033,30]
[381440128,1756198245912,-161.0,0.00033,45]
[381440129,1756198245922,-844.63891918,0.00033,30]
[381440130,1756198245932,-672.0,0.00033,30]
[381440131,1756198245941,-8595.56,0.00033,14]
[381440132,1756198245951,-346.0,0.00033,14]
[381440133,1756198245961,-335.0,0.00033,30]
[381440134,1756198245971,-1062.2,0.00033013,21]
[381440135,1756198245980,-2496.36,0.0003302,30]
[381440136,1756198245989,-2496.36,0.0003302,30]
[381440137,1756198245998,-1188.04,0.00033086,60]
[381440138,1756198246009,-500.0,0.000331,5]
[381440139,1756198246018,-346.0,0.00033151,30]
[381440140,1756198246027,-500.0,0.00033152,2]
[381440141,1756198246037,-274.0,0.00033152,2]
[381440142,1756198246047,-500.0,0.00033152,2]
[381440143,1756198246056,-653.0,0.00033152,2]
[381440144,1756198246067,-150.0,0.00033152,2]
[381440145,1756198246076,-500.0,0.00033152,2]
[381440146,1756198246085,-500.0,0.00033152,2]
[381440147,1756198246095,-500.0,0.00033152,2]
[381440148,1756198246104,-500.0,0.00033152,2]
[381440149,1756198246114,-500.0,0.00033152,2]
[381440150,1756198246123,-419.48,0.00033165,2]
[381440151,1756198246132,-150.0,0.0003318,120]
[381440152,1756198246141,-1188.04,0.00033186,60]
[381440153,1756198246151,-790.0,0.000332,2]
[381440154,1756198246161,-1734.416,0.00033249,2]
[381440155,1756198246172,-926.0,0.00033249,2]
[381440156,1756198246182,-3374.0,0.00033249,2]
[381440157,1756198246192,-1658.0,0.00033249,2]
[381440158,1756198246203,-1298.0,0.00033249,2]
[381440159,1756198246213,-599.0,0.00033249,2]
[381440160,1756198246223,-566.0,0.00033249,2]
[381440161,1756198246233,-4155.0,0.00033249,2]
[381440162,1756198246243,-718.0,0.00033249,2]
[381440163,1756198246253,-21104.0,0.00033249,2]
[381440165,1756198246264,-23191.73093013,0.00033261,20]
[381440167,1756198246273,-1188.04,0.00033286,60]
[381440169,1756198246283,-150.0,0.00033292,120]
[381440171,1756198246293,-2496.36,0.00033294,30]
[381440173,1756198246302,-2496.36,0.00033294,30]
[381440174,1756198246311,-514.35110128,0.000333,15]
[381440175,1756198246321,-150.0,0.00033316,120]
[381440176,1756198246330,-2000.3467,0.00033345,3]
[381440177,1756198246339,-2000.0,0.00033345,3]
[381440178,1756198246349,-700.0,0.0003337,2]
[381440179,1756198246358,-300.0,0.0003337,2]
[381440180,1756198246369,-1188.04,0.00033386,60]
[381440181,1756198246379,-2154.3679192,0.00033412,2]
[381440183,1756198246388,-6150.3906065,0.00033412,2]
[381440186,1756198246397,-7585.1021103,0.00033412,2]
[381440188,1756198246407,-27564.1383595,0.00033412,2]
[381440190,1756198246417,-190.65596206,0.00033422,2]
[381440192,1756198246426,-322.6107,0.00033423,15]
[381440194,1756198246436,-334.5472959,0.00033423,15]
[381440196,1756198246445,-346.92554585,0.00033423,15]
[381440198,1756198246455,-151.0,0.00033423,15]
[381440200,1756198246464,-359.76179104,0.00033423,15]
[381440202,1756198246476,-373.07297731,0.00033423,15]
[381440204,1756198246486,-500.0,0.00033423,15]
[381440206,1756198246495,-386.87667747,0.00033423,15]
[381440208,1756198246504,-500.0,0.00033423,15]
[381440210,1756198246514,-401.19111454,0.00033423,15]
[381440212,1756198246523,-500.0,0.00033423,15]
[381440213,1756198246532,-670.58624095,0.00033423,15]
[381440215,1756198246542,-416.03518578,0.00033423,15]
[381440217,1756198246551,-500.0,0.00033423,15]
[381440220,1756198246562,-695.39793187,0.00033423,15]
[381440222,1756198246571,-431.42848765,0.00033423,15]
[381440224,1756198246580,-500.0,0.00033423,15]
[381440226,1756198246590,-600.0,0.00033423,15]
[381440228,1756198246599,-447.3913417,0.00033423,15]
[381440230,1756198246608,-721.12765535,0.00033423,15]
[381440232,1756198246617,-500.0,0.00033423,15]
[381440233,1756198246626,-463.94482134,0.00033423,15]
[381440235,1756198246635,-600.0,0.00033423,15]
[381440237,1756198246645,-747.8093786,0.00033423,15]
[381440239,1756198246654,-500.0,0.00033423,15]
[381440242,1756198246665,-481.11077973,0.00033423,15]
[381440243,1756198246674,-600.0,0.00033423,15]
[381440245,1756198246684,-621.26400369,0.00033423,15]
[381440247,1756198246693,-775.47832561,0.00033423,15]
[381440249,1756198246703,-600.0,0.00033423,15]
[381440251,1756198246712,-500.0,0.00033423,15]
[381440253,1756198246721,-804.17102365,0.00033423,15]
[381440255,1756198246730,-600.0,0.00033423,15]
[381440257,1756198246740,-500.0,0.00033423,15]
[381440259,1756198246749,-833.92535153,0.00033423,15]
[381440261,1756198246759,-600.0,0.00033423,15]
[381440263,1756198246769,-500.0,0.00033423,15]
[381440265,1756198246778,-864.78058953,0.00033423,15]
[381440267,1756198246788,-600.0,0.00033423,15]
[381440269,1756198246799,-552.42508,0.00033423,15]
[381440272,1756198246809,-487.25898351,0.00033423,15]
[381440273,1756198246819,-600.0,0.00033423,15]
[381440275,1756198246828,-151.0,0.00033423,15]
[381440278,1756198246838,-600.0,0.00033423,15]
[381440280,1756198246848,-156.587,0.00033423,15]
[381440281,1756198246857,-600.0,0.00033423,15]
[381440283,1756198246866,-600.0,0.00033423,15]
[381440285,1756198246875,-600.0,0.00033423,15]
[381440287,1756198246888,-162.380719,0.00033423,15]
[381440290,1756198246898,-600.0,0.00033423,15]
[381440291,1756198246907,-168.3888056,0.00033423,15]
[381440293,1756198246916,-174.61919141,0.00033423,15]
[381440295,1756198246925,-600.0,0.00033423,15]
[381440297,1756198246934,-181.08010149,0.00033423,15]
[381440299,1756198246944,-200.0,0.00033423,15]
[381440301,1756198246954,-600.0,0.00033423,15]
[381440303,1756198246963,-187.78006525,0.00033423,15]
[381440305,1756198246972,-600.0,0.00033423,15]
[381440307,1756198246982,-617.0453615,0.00033423,15]
[381440309,1756198246991,-194.72792766,0.00033423,15]
[381440311,1756198247000,-600.0,0.00033423,15]
[381440313,1756198247009,-201.93286099,0.00033423,15]
[381440316,1756198247019,-152.56977486,0.00033423,15]
[381440318,1756198247029,-600.0,0.00033423,15]
[381440320,1756198247038,-209.40437684,0.00033423,15]
[381440322,1756198247047,-600.0,0.00033423,15]
[381440324,1756198247056,-433.23864431,0.00033423,15]
[381440326,1756198247066,-217.15233878,0.00033423,15]
[381440328,1756198247075,-600.0,0.00033423,15]
[381440330,1756198247084,-225.18697532,0.00033423,15]
[381440332,1756198247094,-600.0,0.00033423,15]
[381440334,1756198247103,-233.51889341,0.00033423,15]
[381440336,1756198247113,-600.0,0.00033423,15]
[381440337,1756198247122,-250.87042764,0.00033423,15]
[381440339,1756198247131,-151.0,0.00033423,15]
[381440341,1756198247140,-210.83078363,0.00033423,15]
[381440343,1756198247149,-257.91778498,0.00033423,15]
[381440345,1756198247158,-267.46074303,0.00033423,15]
[381440347,1756198247167,-200.0,0.00033423,15]
[381440349,1756198247177,-277.35679052,0.00033423,15]
[381440351,1756198247186,-200.0,0.00033423,15]
[381440353,1756198247196,-287.61899177,0.00033423,15]
[381440355,1756198247205,-298.26089446,0.00033423,15]
[381440357,1756198247215,-309.29654756,0.00033423,15]
[381440359,1756198247224,-320.74051982,0.00033423,15]
[381440361,1756198247233,-332.60791905,0.00033423,15]
[381440363,1756198247242,-344.91441206,0.00033423,15]
[381440365,1756198247252,-357.6762453,0.00033423,15]
[381440367,1756198247261,-370.91026638,0.00033423,15]
[381440369,1756198247272,-384.63394623,0.00033423,15]
[381440371,1756198247281,-398.86540225,0.00033423,15]
[381440373,1756198247291,-1000.0,0.00033423,15]
[381440375,1756198247301,-1000.0,0.00033423,15]
[381440377,1756198247311,-1000.0,0.00033423,15]
[381440379,1756198247320,-1000.0,0.00033423,15]
[381440381,1756198247329,-1000.0,0.00033423,15]
[381440383,1756198247339,-150.35765461,0.00033425,2]
[381440385,1756198247348,-500.0,0.00033425,2]
[381440387,1756198247357,-150.0,0.00033425,2]
[381440389,1756198247369,-150.0,0.00033425,2]
[381440391,1756198247380,-500.0,0.00033425,2]
[381440393,1756198247391,-500.0,0.00033425,2]
[381440395,1756198247401,-150.0,0.00033425,2]
[381440397,1756198247411,-500.0,0.00033425,2]
[381440399,1756198247420,-150.0,0.00033425,2]
[381440401,1756198247430,-150.0,0.00033425,2]
[381440403,1756198247441,-150.0,0.00033425,2]
[381440405,1756198247451,-150.0,0.00033425,2]
[381440407,1756198247462,-150.0,0.00033425,2]
[381440409,1756198247471,-500.0,0.00033426,2]
[381440411,1756198247481,-500.0,0.00033426,2]
[381440413,1756198247491,-653.0,0.00033426,2]
[381440415,1756198247502,-202.89796127,0.00033426,2]
[381440417,1756198247511,-500.0,0.00033426,2]
[381440419,1756198247520,-500.0,0.00033426,2]
[381440421,1756198247529,-500.0,0.00033426,2]
[381440423,1756198247538,-500.0,0.00033426,2]
[381440425,1756198247548,-542.09321992,0.00033426,2]
[381440427,1756198247557,-300.0,0.0003347,2]
[381440429,1756198247566,-700.0,0.0003347,2]
[381440431,1756198247575,-151.0,0.00033476,30]
[381440433,1756198247584,-1188.04,0.00033486,60]
[381440435,1756198247594,-150.0,0.00033498,2]
[381440437,1756198247603,-2527.149104,0.00033499,2]
[381440439,1756198247612,-1035.9468219,0.00033499,2]
[381440441,1756198247622,-1253.6494086,0.00033499,2]
[381440443,1756198247631,-780.9661047,0.00033499,2]
[381440445,1756198247640,-391.0,0.000335,2]
[381440447,1756198247649,-194.6,0.000335,8]
[381440449,1756198247658,-300.0,0.000335,8]
[381440451,1756198247667,-8595.56,0.000335,14]
[381440453,1756198247676,-1028.1001,0.000335,2]
[381440454,1756198247685,-1028.1001,0.000335,2]
[381440456,1756198247694,-165.7,0.000335,28]
[381440458,1756198247703,-2384.1373,0.000335,2]
[381440460,1756198247713,-2384.1373,0.000335,2]
[381440462,1756198247721,-1949.5782,0.000335,2]
[381440464,1756198247730,-1949.5782,0.000335,2]
[381440466,1756198247740,-1670.8148,0.000335,2]
[381440468,1756198247749,-1117.67,0.0003351,15]
[381440470,1756198247758,-204.0,0.0003351,30]
[381440472,1756198247767,-238.0,0.0003351,30]
[381440474,1756198247776,-204.0,0.0003351,30]
[381440476,1756198247785,-225.0,0.0003351,30]
[381440478,1756198247795,-238.0,0.0003351,30]
[381440480,1756198247803,-1720.60555596,0.00033512,2]
[381440482,1756198247813,-1945.73151655,0.00033512,2]
[381440484,1756198247822,-2170.85747714,0.00033512,2]
[381440486,1756198247831,-2395.98343773,0.00033512,2]
[381440488,1756198247841,-2621.10939832,0.00033512,2]
[381440490,1756198247850,-900.0,0.00033513,7]
[381440492,1756198247860,-150.0,0.00033513,2]
[381440494,1756198247869,-820.10171359,0.00033513,2]
[381440496,1756198247880,-1045.22767418,0.00033513,2]
[381440498,1756198247891,-1270.35363477,0.00033513,2]
[381440500,1756198247900,-1495.47959536,0.00033513,2]
[381440502,1756198247909,-200.0,0.00033513,2]
[381440504,1756198247921,-200.0,0.00033513,2]
[381440506,1756198247932,-200.0,0.00033513,2]
[381440508,1756198247941,-212.18043798,0.00033519,7]
[381440510,1756198247950,-212.18043798,0.0003352,7]
[381440512,1756198247960,-212.18043798,0.00033521,30]
[381440514,1756198247969,-2000.0,0.00033521,2]
[381440516,1756198247978,-2000.0,0.00033521,2]
[381440518,1756198247987,-2000.0,0.00033521,2]
[381440520,1756198247997,-2000.0,0.00033521,2]
[381440522,1756198248006,-2000.0,0.00033521,2]
[381440524,1756198248015,-2000.0,0.00033521,2]
[381440526,1756198248024,-212.18043798,0.00033522,3]
[381440528,1756198248034,-212.18043798,0.00033522,10]
[381440530,1756198248043,-212.18043798,0.00033522,120]
[381440532,1756198248053,-874.27600428,0.00033526,7]
[381440636,1756198249037,-4421.2,0.00033526,7]
[381440639,1756198249059,-500.0,0.00033526,7]
[381440722,1756198249863,-160.0,0.000248,3]
[381440724,1756198249873,-806.73141447,0.00033147,2]
[381440726,1756198249886,-806.73141447,0.00033315,2]
[381440727,1756198249896,-1265.50015662,0.00033526,7]
[381440743,1756198250042,-229286.54499329,0.00033526,7]
[381440745,1756198250051,-347.58,0.00033526,2]
[381440747,1756198250060,-539.77,0.00033526,2]
[381440749,1756198250069,-408.65,0.00033526,2]
[381440751,1756198250078,-173.79,0.00033526,2]
[381440753,1756198250087,-535.59,0.00033526,2]
[381440755,1756198250096,-408.65,0.00033526,2]
[381440757,1756198250105,-173.79,0.00033526,2]
[381440759,1756198250114,-347.4,0.00033526,2]
[381440761,1756198250124,-166.12,0.00033526,2]
[381440763,1756198250133,-166.12,0.00033526,2]
[381440765,1756198250142,-332.24,0.00033526,2]
[381440767,1756198250151,-166.12,0.00033526,2]
[381440769,1756198250160,-332.24,0.00033526,2]
[381440771,1756198250170,-166.12,0.00033526,2]
[381440773,1756198250179,-166.12,0.00033526,2]
[381440775,1756198250188,-166.12,0.00033526,2]
[381440777,1756198250197,-166.12,0.00033526,2]
[381440779,1756198250208,-212.18043798,0.0003353,3]
[381440780,1756198250217,-212.18043798,0.0003353,120]
[381440782,1756198250226,-150.0,0.00033566,120]
[381440784,1756198250236,-2496.36,0.00033568,30]
[381440786,1756198250245,-2496.36,0.00033568,30]
[381440788,1756198250254,-1188.04,0.00033586,60]
[381440790,1756198250264,-2371.64,0.00033597,2]
[381440792,1756198250273,-150.0,0.00033597,2]
[381440794,1756198250283,-1185.82,0.00033597,2]
[381440796,1756198250291,-150.0,0.00033597,2]
[381440798,1756198250301,-150.0,0.00033597,2]
[381440800,1756198250310,-408.65,0.00033597,2]
[381440802,1756198250319,-539.77,0.00033597,2]
[381440804,1756198250329,-150.0,0.00033597,2]
[381440806,1756198250339,-408.65,0.00033597,2]
[381440808,1756198250348,-539.77,0.00033597,2]
[381440810,1756198250356,-150.0,0.00033597,2]
[381440811,1756198250367,-408.65,0.00033597,2]
[381440813,1756198250377,-187.4298515,0.00033597,2]
[381440974,1756198252158,-151.0,0.00016078,2]
[381440976,1756198252169,-160.0,0.00024,7]
[381440978,1756198252178,-160.0,0.00031,30]
[381440980,1756198252188,-160.0,0.00032,30]
[381440982,1756198252197,-352.3401485,0.00033597,2]
[381440984,1756198252207,-150.0,0.00033597,2]
[381440986,1756198252216,-173.79,0.00033597,2]
[381440988,1756198252226,-150.0,0.00033597,2]
[381440990,1756198252235,-539.77,0.00033597,2]
[381440992,1756198252245,-173.79,0.00033597,2]
[381440994,1756198252255,-307.9362311,0.00033597,2]
[381441118,1756198253453,-895.0,0.00021249,2]
[381441120,1756198253463,-150.095,0.00021249,2]
[381441122,1756198253472,-895.0,0.00024249,2]
[381441124,1756198253481,-465.17615092,0.00027249,2]
[381441130,1756198253531,-429.82384908,0.00027249,2]
[381441132,1756198253540,-49.93032658,0.00030249,2]
[381441140,1756198253604,-845.06967342,0.00030249,2]
[381441142,1756198253613,-166.12,0.00032788,2]
[381441144,1756198253623,-94.11652658,0.00033597,2]
[381442088,1756198459192,-150.0,0.00011886,2]
[381442089,1756198474449,500.0,0.00011886,2]
[381442090,1756198474504,250.0,0.00011886,2]
[381442091,1756198474538,500.0,0.00011886,2]
[381442092,1756198474587,500.0,0.00011886,2]
[381442093,1756198474630,500.0,0.00011886,2]
[381442094,1756198474673,500.0,0.00011886,2]
[381442095,1756198474711,500.0,0.00011886,2]
[381442096,1756198474758,500.0,0.00011886,2]
[381442097,1756198474796,500.0,0.00011886,2]
[381442098,1756198474840,500.0,0.00011886,2]
[381442099,1756198474900,500.0,0.00011886,2]
[381442100,1756198475046,500.0,0.00011886,2]
[381442101,1756198475091,500.0,0.00011886,2]
[381442102,1756198475130,500.0,0.00011886,2]
[381442103,1756198475174,500.0,0.00011886,2]
[381442104,1756198475212,500.0,0.00011886,2]
[381442105,1756198475252,500.0,0.00011886,2]
[381442106,1756198475289,500.0,0.00011886,2]
[381442107,1756198475337,500.0,0.00011886,2]
[381442108,1756198475386,458.86821815,0.00011886,2]
[381442109,1756198475425,500.0,0.00011886,2]
[381442110,1756198475459,500.0,0.00011886,2]
[381442111,1756198475499,500.0,0.00011886,2]
[381442112,1756198475542,500.0,0.00011886,2]
[381442113,1756198475585,500.0,0.00011886,2]
[381442114,1756198475619,500.0,0.00011886,2]
[381442115,1756198475667,500.0,0.00011886,2]
[381442116,1756198475705,500.0,0.00011886,2]
[381442117,1756198475744,500.0,0.00011886,2]
[381442118,1756198475779,500.0,0.00011886,2]
[381442119,1756198475824,500.0,0.00011886,2]
[381442120,1756198475880,500.0,0.00011886,2]
[381442121,1756198475923,500.0,0.00011886,2]
[381442122,1756198475975,500.0,0.00011886,2]
[381442123,1756198476022,500.0,0.00011886,2]
[381442127,1756198521486,170.59154482,0.00022103,42]
[381442128,1756198525697,170.59154478,0.00022512,43]
[381442129,1756198530725,170.59154478,0.00022921,44]
[381442139,1756199431623,-500.0,0.00013699,2]
[381442140,1756199431633,-353.23,0.00013699,2]
[381442141,1756199431642,-500.0,0.00015827,2]
[381442142,1756199431652,-150.0,0.00019178,2]
[381442143,1756199431661,-185.87,0.00019863,2]
[381442144,1756199431671,-353.23,0.00020187,2]
[381442145,1756199431680,-150.105,0.00021249,2]
[381442146,1756199431689,-150.0,0.00021249,2]
[381442147,1756199431698,-195.0,0.00021257,2]
[381442148,1756199431708,-1200.0,0.00021257,2]
[381442149,1756199431717,-150.0,0.00021258,2]
[381442150,1756199431726,-150.0,0.00021258,2]
[381442151,1756199431736,-150.0,0.00021258,2]
[381442152,1756199431745,-150.178,0.00021258,2]
[381442153,1756199431754,-1256.0,0.00021258,2]
[381442154,1756199431763,-2031.0,0.00021258,2]
[381442155,1756199431773,-3374.0,0.00021258,2]
[381442156,1756199431783,-926.0,0.00021258,2]
[381442157,1756199431792,-566.0,0.00021258,2]
[381442158,1756199431802,-1298.0,0.00021258,2]
[381442159,1756199431811,-1658.0,0.00021258,2]
[381442160,1756199431820,-599.0,0.00021258,2]
[381442161,1756199431829,-895.0,0.00021258,2]
[381442162,1756199431839,-1173.0,0.00021258,2]
[381442163,1756199431848,-4155.0,0.00021258,2]
[381442164,1756199431858,-718.0,0.00021258,2]
[381442165,1756199431867,-9767.38104063,0.00021258,2]
[381442166,1756199431947,-5159.60714822,0.00021258,2]
[381442168,1756199431961,-1888.8,0.00021258,2]
[381442171,1756199431976,-4288.21181115,0.00021258,2]
[381442173,1756199431986,-500.0,0.00021273,2]
[381442175,1756199431997,-1000.0,0.0002128,2]